Cogmind - Beta 12 @@@ ROGUE MODE // 2023.03.10 @ 23:46:53 Player: Fleshy Vegetable Bird Result: Destroyed by C-17 Slicer with Blade Saw Performance ------------- Evolutions (3) 1500 Regions Visited (10) 2000 Robots Destroyed (101) 505 Value Destroyed (4423) 4423 Prototype IDs (6) 120 Alien Tech Used (0) 0 Bonus (2263) 2263 TOTAL SCORE: 10811 Bonus ------- High Alert Combat Kills 867 Follower Combat Kills 312 Entered Garrisons 600 Used RIF Installer 1000 Friendly Fire -516 Cogmind --------- Core Integrity 0/700 Matter 200/300 Energy 100/100 System Corruption 12% Temperature Cool (0) Movement Core (50) Location -7/Garrison Parts ------- > --- POWER (1) -------- (None) > --- PROPULSION (3) --- (None) > --- UTILITY (7) ------ Improved Terrain Scan Processor Improved Melee Analysis Suite Authchip [R/Combat] > --- WEAPON (2) ------- (None) > --- INVENTORY (5) ---- Relay Coupler [Demolisher] (23) Relay Coupler [Heavy] (16) Relay Coupler [Behemoth] (9) Gatling Laser High-powered Shotgun Peak State ------------ > --- POWER ------------ Light Nuclear Core > --- PROPULSION ------- Armored Medium Treads Armored Medium Treads Wheel > --- UTILITY ---------- High-capacity Storage Unit Improved Terrain Scan Processor Improved Melee Analysis Suite Hardened Heavy Armor Plating Advanced Hacking Suite Relay Coupler [Brawler] > --- WEAPON ----------- Improved Datajack Power Maul > --- INVENTORY -------- Wheel Improved Terrain Scanner Microactuators Actuator Array Force Booster Insulated Plating Authchip [R/Combat] Relay Coupler [NC] Relay Coupler [Grunt] Relay Coupler [Duelist] Relay Coupler [Sentry] Relay Coupler [Demolisher] Relay Coupler [Hunter] Relay Coupler [Heavy] Relay Coupler [Behemoth] Splice Drone Bay High-powered Shotgun Advanced Assault Cannon Mass Driver [Rating: 55] Favorites ----------- Power Light Nuclear Core Engine Ion Engine Power Core Light Nuclear Core Propulsion Armored Medium Treads Treads Armored Medium Treads Wheel Wheel Utility Improved Terrain Scan Processor Device Force Booster Storage High-capacity Storage Unit Processor Improved Terrain Scan Processor Hackware Advanced Hacking Suite Protection Hardened Heavy Armor Plating Weapon Heavy EM Pulse Gun Energy Gun Heavy EM Pulse Gun Ballistic Gun High-powered Shotgun Ballistic Cannon Mass Driver Launcher Advanced EMP Blaster Impact Weapon Power Maul Slashing Weapon Blade Saw Special Melee Weapon Improved Datajack Build | -11 -10 -10 -10 -9 -8 -8 -8 -8 -7 -7 ------- Run | Jun Mat Min Exi Min Mat Gar Mat Gar Fac Gar Slots Evolved 6 | . . . . . 4 . . . 2 . Power . | . . . . . . . . . . . Propulsion 1 | . . . . . 1 . . . . . Utility 5 | . . . . . 3 . . . 2 . Weapon . | . . . . . . . . . . . Parts Attached 95 | 7 5 5 5 . 9 12 19 11 11 11 Power 7 | 1 1 1 . . 1 1 1 1 . . Engine 2 | 1 1 . . . . . . . . . Core 5 | . . 1 . . 1 1 1 1 . . Reactor . | . . . . . . . . . . . Propulsion 19 | 3 2 1 1 . 1 4 2 1 2 2 Treads 10 | . . . 1 . 1 4 1 1 . 2 Leg . | . . . . . . . . . . . Wheel 9 | 3 2 1 . . . . 1 . 2 . Hover . | . . . . . . . . . . . Flight . | . . . . . . . . . . . Utility 39 | 1 1 3 1 . 4 4 7 5 7 6 Device 14 | . . 3 . . 3 . 3 . 3 2 Storage 8 | 1 1 . 1 . . 2 2 . 1 . Processor 6 | . . . . . 1 2 2 1 . . Hackware 6 | . . . . . . . . 1 2 3 Protection 5 | . . . . . . . . 3 1 1 Artifact . | . . . . . . . . . . . Weapon 30 | 2 1 . 3 . 3 3 9 4 2 3 Energy Gun 11 | 2 1 . 3 . 1 2 2 . . . Energy Cannon . | . . . . . . . . . . . Ballistic Gun 3 | . . . . . . . 3 . . . Ballistic Cannon 3 | . . . . . . . . 1 1 1 Launcher 4 | . . . . . . 1 1 2 . . Special Weapon . | . . . . . . . . . . . Impact Weapon 6 | . . . . . 1 . 3 1 . 1 Slashing Weapon 1 | . . . . . 1 . . . . . Piercing Weapon . | . . . . . . . . . . . Special Melee Weapon 2 | . . . . . . . . . 1 1 Unidentified Prototypes 3 | . . 1 . . . . 2 . . . Corrupted Parts 2 | . . . . . . . . . . 2 System Corruption 11 | . . . . . . . . . . 11 Parts Lost 27 | . 4 2 . . 1 4 . 4 5 7 Power 3 | . . . . . . 1 . 1 1 . Propulsion 10 | . 3 1 . . 1 1 . 1 2 1 Utility 7 | . . 1 . . . . . 1 1 4 Weapon 7 | . 1 . . . . 2 . 1 1 2 Highest Loss Streak 4 | . 1 2 . . 1 2 . 1 4 3 To Critical Strikes . | . . . . . . . . . . . Average Slot Usage (%) 87 | . 75 86 87 100 93 85 97 95 82 50 Engine 2 | . 14 12 . . . . . . . . Core 7 | . . 1 14 14 9 8 9 8 7 . Treads 14 | . . . 2 14 16 24 22 17 13 6 Wheel 7 | . 20 23 14 14 7 . 3 5 4 . Device 9 | . . 5 14 14 27 10 9 8 6 2 Storage 9 | . 14 14 14 14 9 9 9 9 7 6 Processor 12 | . . . . . 4 14 26 18 15 15 Hackware 2 | . . . . . . . . 5 7 8 Protection 1 | . . . . . . . . 3 7 2 Energy Gun 10 | . 25 28 28 28 17 11 8 . . . Ballistic Gun 1 | . . . . . . . 3 2 . . Launcher 2 | . . . . . . 5 . 4 . . Impact Weapon 3 | . . . . . . . 4 7 6 4 Naked Turns . | . . . . . . . . . . . Heaviest Build 213 | 13 28 31 34 34 48 213 57 69 82 55 Greatest Support 77 | 20 20 20 10 10 46 69 77 54 54 40 Greatest Overweight (x) 16 | 1 4 3 3 3 4 4 5 6 8 16 Average Overweight (x) 2 | . . 1 3 3 3 . 1 3 4 2 Largest Inventory Capacity 35 | 8 15 15 15 15 15 35 20 20 20 20 Average Capacity 17 | 7 9 15 15 15 15 21 18 20 20 19 Most Carried 20 | 8 15 15 15 15 15 16 19 20 20 17 Average Carried 15 | 4 8 13 14 15 14 14 16 18 18 14 Final Capacity 20 | 8 15 15 15 15 15 15 20 20 20 5 Final Carried 20 | 8 14 15 15 15 15 15 18 20 17 5 Class Distribution -------------------- 49% | Mutant 44% | Bothacker-Mutant 5% | Hauler-Mutant Dominant Class ---------------- Mutant | -10/Materials Mutant | -10/Mines Mutant | -10/Exiles Mutant | -9/Mines Mutant | -8/Materials Mutant | -8/Garrison Bothacker-Mutant | -8/Materials Bothacker-Mutant | -8/Garrison Bothacker-Mutant | -7/Factory Mutant | -7/Garrison Resources | -11 -10 -10 -10 -9 -8 -8 -8 -8 -7 -7 ----------- Run | Jun Mat Min Exi Min Mat Gar Mat Gar Fac Gar Matter Collected 1527 | 258 42 83 . 73 90 224 231 349 107 70 Remotely . | . . . . . . . . . . . Salvage Created 3817 | 157 563 160 . . 737 482 542 873 233 70 Parts 182 | 13 20 5 . . 38 28 21 44 8 5 Haulers Intercepted 5 | . 1 . . . 2 . 2 . . . Recyclers Shooed . | . . . . . . . . . . . Parts Field Recycled . | . . . . . . . . . . . Retrieved Matter . | . . . . . . . . . . . Parts Self-Destructed . | . . . . . . . . . . . Prevented . | . . . . . . . . . . . Kills | -11 -10 -10 -10 -9 -8 -8 -8 -8 -7 -7 ------- Run | Jun Mat Min Exi Min Mat Gar Mat Gar Fac Gar Combat Hostiles Destroyed 78 | . 9 2 . . 9 17 13 22 4 2 Melee 10 | . . . . . . . 4 5 1 . Guns 34 | . 9 2 . . 8 8 6 1 . . Cannons 4 | . . . . . . . . 3 1 . AOE 17 | . . . . . . 9 . 8 . . Classes Destroyed 16 | 2 3 . . . 7 . . 2 2 . Worker 1 | . . . . . . . . . 1 . Builder 1 | . . . . . 1 . . . . . Tunneler 5 | 5 . . . . . . . . . . Hauler 5 | . 1 . . . 2 . 2 . . . Recycler 3 | 1 1 1 . . . . . . . . Operator 1 | . 1 . . . . . . . . . Drone 1 | . . . . . 1 . . . . . Watcher 5 | . . . . . 3 . 2 . . . Swarmer 17 | . . . . . 1 4 6 6 . . Grunt 38 | . 9 2 . . 5 12 5 3 2 . Brawler 3 | . . . . . 1 . . 1 1 . Duelist 1 | . . . . . . . . 1 . . Protector 2 | . . . . . . . . . 2 . Sentry 14 | . . . . . 2 1 2 7 . 2 Hunter 2 | . . . . . 1 . . 1 . . Programmer 2 | . . . . . . . . 2 . . Savage 1 | . . . . . . . . 1 . . Best Kill Streak 7 | 6 3 1 . . 3 7 6 6 2 1 Combat Bots Only 7 | . 3 1 . . 3 7 4 6 2 1 Max Kills in Single Turn 2 | 1 1 1 . . 1 2 1 2 2 1 Gunslinging . | . . . . . . . . . . . Exploded 2 | . . . . . . 2 . 2 . . Melee 1 | . . . . . . . 1 1 1 . Uniques/NPCs Destroyed . | . . . . . . . . . . . Combat | -11 -10 -10 -10 -9 -8 -8 -8 -8 -7 -7 -------- Run | Jun Mat Min Exi Min Mat Gar Mat Gar Fac Gar Damage Taken 5904 | . 450 189 . . 441 590 667 1100 1188 1279 Core 1180 | . 73 36 . . 52 31 110 163 56 659 Absorbed by Shields 187 | . . . . . . . . . 187 . Regen/Repaired (Parts) 125 | . . . . . . . 125 . . . Core Remaining (%) 63 | 100 . . . 56 . . . 35 . . Volleys Fired 260 | 11 67 11 . . 37 56 27 34 3 14 Largest 2 | 2 2 2 . . 2 2 2 2 1 1 Hottest 134 | 90 90 90 . . 90 110 134 82 57 57 Shots Fired 437 | 22 130 24 . . 74 78 52 40 3 14 Gun 378 | 22 130 24 . . 74 64 52 12 . . Cannon 26 | . . . . . . . . 9 3 14 Launcher 33 | . . . . . . 14 . 19 . . Special . | . . . . . . . . . . . Kinetic 52 | . . . . . . . 14 21 3 14 Thermal 231 | 22 130 24 . . . 17 38 . . . Explosive 14 | . . . . . . 14 . . . . Electromagnetic 140 | . . . . . 74 47 . 19 . . Robot Hit Streak 14 | 11 10 5 . . 11 14 10 7 2 3 Robot Miss Streak 5 | 1 3 1 . . 5 2 3 3 . 2 Penetration Max . | . . . . . . . . . . . Secondary Targets 2 | . . . . . . 2 . . . . Max Gunslinging Chain 1 | . . . . . . 1 . . . . Shots Hit Robots 305 | 15 83 17 . . 45 30 54 32 15 14 Core Hits 140 | 7 29 7 . . 22 35 14 22 4 . Critical Kills 3 | . . . . . . . 1 1 1 . Critical Parts Destroyed 16 | . . . . . . . 5 7 2 2 Critical Strikes 28 | 2 4 . . . 1 1 6 8 3 3 Burn 6 | 2 4 . . . . . . . . . Corrupt 2 | . . . . . 1 1 . . . . Smash 20 | . . . . . . . 6 8 3 3 Melee Attacks 111 | . . . . . 3 . 20 54 22 12 Impact 101 | . . . . . . . 20 54 16 11 Slashing 3 | . . . . . 3 . . . . . Piercing . | . . . . . . . . . . . Sneak Attacks 7 | . . . . . 3 . 1 2 1 . Combat Hostiles 1 | . . . . . . . . 1 . . Follow-up Attacks . | . . . . . . . . . . . Damage Inflicted 8136 | 182 973 194 . . 933 1313 1506 1976 591 468 Guns 3225 | 182 973 194 . . 752 321 662 141 . . Cannons 309 | . . . . . . . . 195 27 87 Explosions 1745 | . . . . . 87 992 . 582 84 . Melee 2857 | . . . . . 94 . 844 1058 480 381 Ramming . | . . . . . . . . . . . Kinetic 624 | . . . . . . . 174 336 27 87 Thermal 2103 | 182 973 194 . . 87 111 488 68 . . Explosive 1076 | . . . . . . 992 . . 84 . Electromagnetic 1476 | . . . . . 752 210 . 514 . . Impact 2763 | . . . . . . . 844 1058 480 381 Slashing 94 | . . . . . 94 . . . . . Piercing . | . . . . . . . . . . . Highest Corruption 12 | . 3 3 3 3 . . . 2 . 12 Average Corruption 3 | . 2 3 3 3 . . . 1 . 9 Corruption Purged . | . . . . . . . . . . . Corruption Blocked . | . . . . . . . . . . . Effects 26 | . 2 10 5 2 . . . 1 . 6 Message Errors 8 | . . 2 4 1 . . . . . 1 Matter Fused 7 | . 1 3 1 1 . . . . . 1 Heat Flow Errors 1 | . . . . . . . . . . 1 Energy Discharges 3 | . . 2 . . . . . . . 1 Parts Rejected 1 | . . . . . . . . 1 . . Parts Fused 1 | . . 1 . . . . . . . . Data Loss (minor) 3 | . 1 . . . . . . . . 2 Misfires 2 | . . 2 . . . . . . . . Overload Shots . | . . . . . . . . . . . Overflow Damage 1098 | . . . . . 20 49 404 487 74 64 Projectiles . | . . . . . . . . . . . Explosions 56 | . . . . . 4 49 . 3 . . Melee 1042 | . . . . . 16 . 404 484 74 64 Knockbacks 9 | . . . . . . . 3 4 2 . Impact 7 | . . . . . . . 3 2 2 . Kinetic . | . . . . . . . . . . . Secondary 2 | . . . . . . . . 2 . . Self-Inflicted Damage 92 | . . . . . 19 49 . 24 . . Shots 6 | . . . . . 1 3 . 2 . . Rammed . | . . . . . . . . . . . Targets Rammed . | . . . . . . . . . . . Kicked . | . . . . . . . . . . . Crushed . | . . . . . . . . . . . Highest Temperature 334 | 210 334 186 . . 72 25 327 72 23 145 Average Temperature 88 | 80 115 64 . . 23 12 105 33 11 75 Received Heat Transfer 1874 | . 228 69 . . 153 279 279 216 434 216 Effects 2 | . 1 . . . . . 1 . . . Energy Bleed 2 | . 1 . . . . . 1 . . . Siege Activations . | . . . . . . . . . . . Robots Corrupted 3 | . . . . . 2 . . 1 . . Combat Hostiles 2 | . . . . . 1 . . 1 . . Parts Fried 22 | . . . . . 5 . 7 5 4 1 Impact Corruptions 33 | . . . . . . . 13 14 3 3 Robots Melted 1 | . . . . . . . 1 . . . Combat Hostiles 1 | . . . . . . . 1 . . . Parts Melted 7 | 2 3 . . . . . 2 . . . Heat Transferred 5495 | 631 2923 509 . . 50 259 1073 50 . . Parts Sabotaged . | . . . . . . . . . . . Parts Stolen . | . . . . . . . . . . . Parts Stripped . | . . . . . . . . . . . Power Chain Reactions 3 | . . . . . 1 . . 2 . . Missiles Intercepted . | . . . . . . . . . . . Alert | -11 -10 -10 -10 -9 -8 -8 -8 -8 -7 -7 ------- Run | Jun Mat Min Exi Min Mat Gar Mat Gar Fac Gar Peak Influence 1511 | 30 247 147 . . 445 997 766 1511 856 418 Initial 793 | . 19 17 . . . 245 485 463 793 403 Average 553 | 12 96 46 . . 298 585 604 984 753 394 Maximum Alert Level 4 | . 1 . . . 2 3 3 4 3 2 Low Security (%) 21 | 100 91 100 . 100 10 . . . . . Level 1 17 | . 8 . . . 71 44 . . . 40 Level 2 27 | . . . . . 17 22 94 15 37 59 Level 3 24 | . . . . . . 33 5 46 62 . Level 4 9 | . . . . . . . . 38 . . Level 5 . | . . . . . . . . . . . High Security . | . . . . . . . . . . . Max Security . | . . . . . . . . . . . Squads Dispatched 6 | . 1 . . . 1 . 1 . 3 . Investigation . | . . . . . . . . . . . Extermination . | . . . . . . . . . . . Reinforcement 3 | . 1 . . . . . 1 . 1 . Assault 2 | . . . . . . . . . 2 . Garrison 1 | . . . . . 1 . . . . . Intercept . | . . . . . . . . . . . Searches Triggered . | . . . . . . . . . . . Construction Impeded . | . . . . . . . . . . . Haulers Reinforced . | . . . . . . . . . . . Active Scanning Responses . | . . . . . . . . . . . Cargo Convoy Interrupts . | . . . . . . . . . . . Stealth | -11 -10 -10 -10 -9 -8 -8 -8 -8 -7 -7 --------- Run | Jun Mat Min Exi Min Mat Gar Mat Gar Fac Gar Distress Signals 6 | . 2 . . . . . 4 . . . Communications Jammed . | . . . . . . . . . . . Distress Signals . | . . . . . . . . . . . Times Spotted 154 | . 22 7 . . 21 18 29 28 14 15 Peak Tracking Total 8 | . 4 2 . . 3 4 6 4 5 8 Tactical Retreats 13 | . 2 3 . . . . 3 3 1 1 Traps | -11 -10 -10 -10 -9 -8 -8 -8 -8 -7 -7 ------- Run | Jun Mat Min Exi Min Mat Gar Mat Gar Fac Gar Traps Triggered 17 | . 3 2 . . . 3 . 7 2 . Indirectly . | . . . . . . . . . . . Trap Hack Attempts . | . . . . . . . . . . . Triggered . | . . . . . . . . . . . Disarmed . | . . . . . . . . . . . Reprogrammed . | . . . . . . . . . . . Reused . | . . . . . . . . . . . Traps Extracted . | . . . . . . . . . . . Installed . | . . . . . . . . . . . Triggered . | . . . . . . . . . . . Exploded 3 | . . . . . . 3 . . . . Machines | -11 -10 -10 -10 -9 -8 -8 -8 -8 -7 -7 ---------- Run | Jun Mat Min Exi Min Mat Gar Mat Gar Fac Gar Machines Disabled 13 | . . . . . 1 3 . 5 3 1 Max in Single Turn 3 | . . . . . 1 1 . 1 3 1 Garrison Relay 6 | . . . . . . 3 . 3 . . Phase Generator 1 | . . . . . . . . . . 1 Machines Repaired . | . . . . . . . . . . . Machines Sabotaged . | . . . . . . . . . . . Overloaded Fab Kills . | . . . . . . . . . . . Hacking | -11 -10 -10 -10 -9 -8 -8 -8 -8 -7 -7 --------- Run | Jun Mat Min Exi Min Mat Gar Mat Gar Fac Gar Machines Accessed 36 | . 8 2 1 . 7 3 6 4 4 1 Terminals 25 | . 7 . . . 5 3 4 4 1 1 Fabricators . | . . . . . . . . . . . Repair Stations 3 | . . . . . . . 1 . 2 . Recycling Units 1 | . 1 . . . . . . . . . Scanalyzers 1 | . . . . . 1 . . . . . Garrison Access 3 | . . . . . 1 . 1 . 1 . Total Hacks 103 | . 23 2 23 . 18 4 16 6 9 2 Successful 73 | . 15 2 23 . 12 3 9 3 5 1 Failed 30 | . 8 . . . 6 1 7 3 4 1 Catastrophic 4 | . 2 . . . 1 . 1 . . . Database Lockouts . | . . . . . . . . . . . Manual 38 | . 18 . . . 10 . 10 . . . Terminals 58 | . 22 . . . 12 4 10 6 2 2 Fabricators . | . . . . . . . . . . . Repair Stations 11 | . . . . . . . 5 . 6 . Recycling Units 1 | . 1 . . . . . . . . . Scanalyzers 4 | . . . . . 4 . . . . . Garrison Access 4 | . . . . . 2 . 1 . 1 . Terminal Hacks 42 | . 5 2 23 . 2 3 2 3 1 1 Record 23 | . . . 23 . . . . . . . Part Schematic 3 | . 1 . . . 1 . . . 1 . Prototype ID Bank 2 | . 2 . . . . . . . . . Open Door 5 | . . 2 . . . 1 . 1 . 1 Level Access Points 1 | . . . . . . . 1 . . . Emergency Access Points 2 | . . . . . . 1 . 1 . . Terminal Index 3 | . 1 . . . 1 . 1 . . . Unreport Threat 1 | . 1 . . . . . . . . . Garrison Registry 1 | . . . . . . 1 . . . . Patrol Navigation 1 | . . . . . . . . 1 . . Fabricator Hacks . | . . . . . . . . . . . Repair Station Hacks 7 | . . . . . . . 4 . 3 . Scan Component 4 | . . . . . . . 2 . 2 . Repair 3 | . . . . . . . 2 . 1 . Recycling Unit Hacks 1 | . 1 . . . . . . . . . Retrieve Components 1 | . 1 . . . . . . . . . Scanalyzer 4 | . . . . . 4 . . . . . Insert Component 2 | . . . . . 2 . . . . . Analyze 2 | . . . . . 2 . . . . . Garrison Access Hacks 3 | . . . . . 1 . 1 . 1 . Unlock Access 3 | . . . . . 1 . 1 . 1 . Unauthorized Hacks 16 | . 9 . . . 5 . 2 . . . Terminals 16 | . 9 . . . 5 . 2 . . . Track 3 | . 2 . . . 1 . . . . . Botnet 11 | . 5 . . . 4 . 2 . . . Disrupt 1 | . 1 . . . . . . . . . Operators 1 | . 1 . . . . . . . . . Fabricators . | . . . . . . . . . . . Repair Stations . | . . . . . . . . . . . Recycling Units . | . . . . . . . . . . . Scanalyzers . | . . . . . . . . . . . Garrison Access . | . . . . . . . . . . . Data Cores Recovered . | . . . . . . . . . . . Used . | . . . . . . . . . . . Hacking Detections 27 | . 7 . . . 6 2 5 3 3 1 Full Trace Events . | . . . . . . . . . . . Feedback Events . | . . . . . . . . . . . Feedback Blocked . | . . . . . . . . . . . Robot Schematics Acquired . | . . . . . . . . . . . Robots Built . | . . . . . . . . . . . Authchips . | . . . . . . . . . . . Time . | . . . . . . . . . . . Total Robot Build Rating . | . . . . . . . . . . . Part Schematics Acquired 4 | . 1 . . . 2 . . . 1 . Parts Built . | . . . . . . . . . . . Authchips . | . . . . . . . . . . . Time . | . . . . . . . . . . . Total Part Build Rating . | . . . . . . . . . . . Parts Repaired 2 | . . . . . . . 2 . . . Time 150 | . . . . . . . 94 . 56 . Parts Recycled . | . . . . . . . . . . . Recycled Matter . | . . . . . . . . . . . Retrieved Matter . | . . . . . . . . . . . Retrieved Components 6 | . 6 . . . . . . . . . Parts Scanalyzed 2 | . . . . . 2 . . . . . Part Schematics Acquired 2 | . . . . . 2 . . . . . Parts Damaged . | . . . . . . . . . . . Bothacking | -11 -10 -10 -10 -9 -8 -8 -8 -8 -7 -7 ------------ Run | Jun Mat Min Exi Min Mat Gar Mat Gar Fac Gar Used RIF Installer 2 | . . . . . . 1 . 1 . . Patrol Navigation 1 | . . . . . . . . 1 . . Robots Hacked 5 | . . . . . . . . . 4 1 Non-combat . | . . . . . . . . . . . Combat 5 | . . . . . . . . . 4 1 Robot Hacks Applied 6 | . . . . . . . . . 5 1 find_garrison 1 | . . . . . . . . . 1 . scatter_targeting 1 | . . . . . . . . . 1 . streamctrl_high 1 | . . . . . . . . . 1 . formatsys_high 3 | . . . . . . . . . 2 1 Relay Couplers Released 24 | . . . . . . 10 . 14 . . Machine Destruction 24 | . . . . . . 10 . 14 . . Attached 4 | . . . . . . . . . 2 2 Fabnet Peak Effective % . | . . . . . . . . . . . Robots Rewired 5 | . . . . . . . . 1 2 2 Allies Hacked . | . . . . . . . . . . . Hacks Repelled . | . . . . . . . . . . . Allies | -11 -10 -10 -10 -9 -8 -8 -8 -8 -7 -7 -------- Run | Jun Mat Min Exi Min Mat Gar Mat Gar Fac Gar Total Allies 14 | . . . . 3 1 1 . 1 5 3 Largest Group 4 | . . . . 3 3 1 1 1 4 2 Highest-Rated Group 92 | . . . . 40 40 20 20 31 92 70 Highest-Rated Ally 40 | . . . . 16 16 20 20 31 40 39 Total Orders . | . . . . . . . . . . . Ally Attacks 82 | . . . . . 41 . 5 5 25 6 Total Damage 1101 | . . . . . 334 . 177 63 347 180 Kills 15 | . . . . . 8 . 4 1 1 1 Allies Corrupted 1 | . . . . . 1 . . . . . Allies Melted 1 | . . . . . . . 1 . . . Intel | -11 -10 -10 -10 -9 -8 -8 -8 -8 -7 -7 ------- Run | Jun Mat Min Exi Min Mat Gar Mat Gar Fac Gar Robot Analysis Total . | . . . . . . . . . . . Derelict Logs Recovered 2 | . . 1 . 1 . . . . . . Drone Launches 4 | . . . . . 2 . . . . 2 Drone Recoveries 1 | . . . . . 1 . . . . . Exploration | -11 -10 -10 -10 -9 -8 -8 -8 -8 -7 -7 ------------- Run | Jun Mat Min Exi Min Mat Gar Mat Gar Fac Gar Turns Passed 8382 | 113 795 612 240 201 737 1501 1023 1939 806 415 Spaces Moved 4037 | 67 551 448 183 153 392 587 389 800 339 128 Core 71 | 4 1 . . . . . . . . 66 Treads 1505 | . . . . . 85 587 317 340 114 62 Legs . | . . . . . . . . . . . Wheels 2461 | 63 550 448 183 153 307 . 72 460 225 . Hover . | . . . . . . . . . . . Flight . | . . . . . . . . . . . Fastest Speed 50 | 50 80 95 125 125 125 160 155 155 140 50 Average Speed 162 | 85 91 101 125 125 146 223 174 195 197 240 Slowest Speed 850 | 100 250 125 125 125 240 480 250 330 330 850 Overloaded Moves . | . . . . . . . . . . . Propulsion Burnouts . | . . . . . . . . . . . Robots Hopped . | . . . . . . . . . . . Cave-ins Triggered . | . . . . . . . . . . . Exploration Rate (%) 51 | 6 91 73 54 35 40 86 46 95 14 24 Regions Visited 10 Branch Regions 3 Pre-discovered Areas 2 | . . 1 1 . . . . . . . Known Exits Taken 3 | . . . . . 1 . 1 . 1 . Unknown Exits Taken 5 | 1 1 1 1 1 . . . . . . Scrap Searched 4 | . . 2 . 2 . . . . . . Spaces Dug 20 | . . . . . . . 5 7 8 . Terrain Destroyed 154 | . . . . . 5 75 5 12 56 1 Melee 18 | . . . . . . . 5 7 6 . Projectile 5 | . . . . . . . . 2 2 1 AOE 131 | . . . . . 5 75 . 3 48 . Terrain Rammed . | . . . . . . . . . . . Walls Destroyed . | . . . . . . . . . . . Machines Disabled . | . . . . . . . . . . . Actions | -11 -10 -10 -10 -9 -8 -8 -8 -8 -7 -7 --------- Run | Jun Mat Min Exi Min Mat Gar Mat Gar Fac Gar Total 5253 | 100 713 583 195 163 479 708 641 1029 441 201 Wait 472 | . 70 111 . 11 15 15 156 58 14 22 Move 4025 | 66 550 447 182 152 391 585 388 798 338 128 Hop . | . . . . . . . . . . . Pick Up 119 | 15 15 6 4 . 14 21 18 14 6 6 Fast Attach . | . . . . . . . . . . . Attach 61 | 6 4 4 3 . 5 9 9 4 6 11 Detach 2 | . . 1 . . . . . . 1 . Swap 34 | 1 1 1 2 . 4 3 10 7 5 . Drop 66 | 1 6 2 4 . 10 15 13 9 2 4 Fire 260 | 11 67 11 . . 37 56 27 34 3 14 Melee 111 | . . . . . 3 . 20 54 22 12 Ram . | . . . . . . . . . . . Kick . | . . . . . . . . . . . Crush . | . . . . . . . . . . . Escape Stasis 44 | . . . . . . 4 . 24 16 . Rewire 59 | . . . . . . . . 27 28 4 Trap . | . . . . . . . . . . . Miscellaneous . | . . . . . . . . . . . Route ------- -11/Junkyard -10/Materials (discovered 3 exits: [*Mat x2] / *Min) -10/Mines (discovered 3 exits: [*Mat x2] / *Exi) -10/Exiles -9/Mines -8/Materials (discovered 2 exits: *Fac / Gar) -8/Garrison (discovered 3 exits: *Mat x3) -8/Materials (discovered 4 exits: *Fac x3 / Gar) -8/Garrison (discovered 3 exits: *Fac x3) -7/Factory (discovered 2 exits: [*Low] / Gar) -7/Garrison History --------- Turn | Location | Event 14 | -11/Junkyard | Discovered new exit (range 15) 114 | -11/Junkyard | Entered Materials 312 | -10/Materials | Build established: Mutant 479 | -10/Materials | Discovered new exit (range 9) 703 | -10/Materials | Discovered new exit (range 8) 898 | -10/Materials | Discovered new exit (range 9) 909 | -10/Materials | Entered Mines 934 | -10/Mines | Discovered new exit (range 9) 963 | -10/Mines | Discovered new exit (range 7) 1252 | -10/Mines | Found the Drone Emporium 1255 | -10/Mines | Found Prototype Device 1256 | -10/Mines | Identified Splice Drone Bay 1380 | -10/Mines | Met a Derelict who couldn't figure out how to use a Trap Extractor 1515 | -10/Mines | Deemed a non-threat by the Exiles lab entrance 1516 | -10/Mines | Discovered new exit (range 5) 1521 | -10/Mines | Entered Exiles 1566 | -10/Exiles | Met 8R-AWN 1586 | -10/Exiles | Met EX-HEX 1621 | -10/Exiles | Met EX-BIN 1663 | -10/Exiles | Met EX-DEC 1671 | -10/Exiles | Learned location of Zion (-6) 1750 | -10/Exiles | Discovered new exit (range 10) 1761 | -10/Exiles | Entered Mines 1838 | -9/Mines | Assisted by bots powering up and referring to "LRC-V3" 1888 | -9/Mines | Learned location of 1 exit from Lower Caves 1942 | -9/Mines | Discovered new exit (range 5) 1962 | -9/Mines | Entered Materials 1962 | -8/Materials | Accompanied by 3 allies 1962 | -8/Materials | Evolved 4 slots: Propulsion x1, Utility x3 2293 | -8/Materials | Discovered new exit (range 12) 2556 | -8/Materials | Garrison activated, responded to threat 2640 | -8/Materials | Identified exit to Garrison 2699 | -8/Materials | Entered Garrison 2727 | -8/Garrison | Installed Relay Interface Framework 2772 | -8/Garrison | Triggered checkpoint 2812 | -8/Garrison | Garrison Relay disabled 3124 | -8/Garrison | Build established: Hauler-Mutant 3345 | -8/Garrison | Triggered checkpoint 3395 | -8/Garrison | Destroyed 7 combat bots 3457 | -8/Garrison | Garrison Relay disabled 3585 | -8/Garrison | Discovered new exit (range 66) 3585 | -8/Garrison | Discovered new exit (range 49) 3585 | -8/Garrison | Discovered new exit (range 15) 3611 | -8/Garrison | Build established: Mutant 3697 | -8/Garrison | Triggered checkpoint 3809 | -8/Garrison | Rescued a captive Derelict 3828 | -8/Garrison | Triggered checkpoint 3847 | -8/Garrison | Garrison Relay disabled 4200 | -8/Garrison | Entered Materials 4200 | -8/Materials | Accompanied by 1 ally 4717 | -8/Materials | Build established: Bothacker-Mutant 4979 | -8/Materials | Identified exit to Factory 5082 | -8/Materials | Repaired Arm. Medium Treads 5122 | -8/Materials | Repaired Imp. Terrain Scanner 5222 | -8/Materials | Identified exit to Garrison 5223 | -8/Materials | Entered Garrison 5234 | -8/Garrison | Expanded RIF knowledge: Patrol Navigation 5382 | -8/Garrison | Triggered checkpoint 5407 | -8/Garrison | Garrison Relay disabled 5476 | -8/Garrison | Triggered checkpoint 5496 | -8/Garrison | Triggered checkpoint 5565 | -8/Garrison | Triggered checkpoint 5773 | -8/Garrison | Triggered checkpoint 5850 | -8/Garrison | Discovered exit to Factory (range 12) 5874 | -8/Garrison | Core integrity fell below 50% 6218 | -8/Garrison | Garrison Relay disabled 6292 | -8/Garrison | Triggered checkpoint 6363 | -8/Garrison | Discovered exit to Factory (range 12) 6739 | -8/Garrison | Discovered exit to Factory (range 12) 6874 | -8/Garrison | Triggered checkpoint 6970 | -8/Garrison | Garrison Relay disabled 7162 | -8/Garrison | Entered Factory 7162 | -7/Factory | Evolved 2 slots: Utility x2 7562 | -7/Factory | First assault squad dispatched 7622 | -7/Factory | Discovered new exit (range 15) 7965 | -7/Factory | Identified exit to Garrison 7968 | -7/Factory | Entered Garrison 7997 | -7/Garrison | Lost 4 parts (1p1n1u1w) 8054 | -7/Garrison | Triggered checkpoint 8128 | -7/Garrison | Core integrity fell below 50% 8137 | -7/Garrison | Lost 3 parts (1u2w) 8247 | -7/Garrison | System corruption reached 10% 8343 | -7/Garrison | Phase Generator disabled 8356 | -7/Garrison | Core integrity fell below 20% 8383 | -7/Garrison | Destroyed by C-17 Slicer with Blade Saw Last Messages --------------- 08352_ >> Lost connection to Splice Drone. 08353_ The unstable cave ceiling collapses. 08353_ Acquired Adv. Assault Cannon. 08354_ Imp. Light Armor Plating severed. 08355_ The unstable cave ceiling collapses. 08355_ Dropped Lgt. Treads. 08356_ The unstable cave ceiling collapses. 08356_ Dropped Lgt. Treads. 08356_ Dropped Hcp. Storage Unit. 08357_ VLQM BR%GM3OJR8E MH 1NWT%AYYBA 08357_ C-17 Slicer Lgt. Nuclear Core critical detonation. 08357_ C-17 Slicer destroyed. 08357_ Splice Drone destroyed. 08357_ Dropped Power Maul. 08360_ The unstable cave ceiling collapses. 08361_ Splice Drone Mak. Microthruster severed. 08361_ Mak. Microthruster disintegrated. 08370_ Acquired 24 matter. 08372_ Relay Coupler [NC] destroyed. 08377_ Imp. Terrain Scanner severed. Map ----- +----------------------------------------------------+ | ?????????????????????????????????????????????????? | | ?????????????????????????????????????????????????? | | ?????????????????????????????????????????????????? | | ?????????????????????????????????????????????????? | | ?????????????????????????????????????????????????? | | ?????????????????????????????????????????????????? | | ?????????????????????????????????????????????????? | | ?????????????????????????????????????????????????? | | ?????????????????????????????????????????????????? | | ?????????????????????????????????????????????????? | | ?????????????????????????????????????????????????? | | ?????????????????????????????????????????????????? | | ?????????????????????????????????????????????????? | | ?????????????????????????????????????????????????? | | ?????????????????????????????????????????????????? | | ?????????????????????????????????????????????????? | | ?????????????????????????????????????????????????? | | ?????????????????????????????????????????????????? | | ?????????????????????????????????????????????????? | | ?????????????????????????????????????????????????? | | ?????????????????????????????????????????????????? | | ?????????????????????????????????????????????????? | | ??????????????????????????????? #????????????????? | | ??????????????????########### ## #??????????? | | #######???????????# scs s ????????? | | T# #???????????# c @c c ????????? | | #???????????# ##### ## ????????? | | #???????????# #???? #???????"""???????????? | | ####???????????# #?????#?????????????????????? | | ## #????########### #???????????????????????????? | | ?# #????# ! #???????????????????????????? | | ?# #??### ######### #???????????????????????????? | | ##*#### ######??# #???????????????????????????? | | " %[ ## ######### #????????????????? | | ## #### ######??# #????????????????? | | ## ####% #???????# #????????????????? | | # #### #???????# ############????????????????? | | ## #???????# #???????????????????????????? | | # ###### ## #???????????????????????????? | | ???????????????????????????? | | ] ## #???# #???????????????????????????? | | !! #???""#??# #???????????????????????????? | | %/!= ##???????# #???????????????????????????? | | !=! #???????# #???????????????????????????? | | # #???????# #???????????????????????????? | | % #???????# #???????????????????????????? | | [ ########## #???????????????????????????? | | # #???????????????????????????? | | ## #???????????????????????????? | | # # #########???????????????????????????? | +----------------------------------------------------+ Best States ------------- Heat Dissipation 45 Energy Generation 14 Energy Capacity 250 Matter Stores 300 Matter Capacity 300 Sight Range 20 Terrain Scan Range 16 Terrain Scan Density 110 Armor Coverage 600 Resistance: EM 15 Evasion (%) 50 Targeting Accuracy 16 Melee Accuracy 6 Recoil Reduction 3 Force Boost 20 Offensive Hacking 14 Relay Coupler Types 1 Relay Coupler Value 32 Authchip Count 1 Trap Extractor Capacity 6 Item Schematics ----------------- Wheel | -10/Materials | Hacked Insulated Plating | -8/Materials | Scanalyzed Force Booster | -8/Materials | Scanalyzed Chainsword | -7/Factory | Hacked Robot Schematics ------------------ None Fabricated ------------ Nothing Alien Tech Used ----------------- None Achievements -------------- None Challenges ------------ None Game ------ Seed GammaCoordinationChronowheel Manual? 0 Play Time 01:13:52 Cumulative 319.0 hours Start 2023.03.10 @ 20:06:28 End 2023.03.10 @ 23:46:53 Sessions 3 Manual Loads 0 Difficulty Rogue Special Mode None Game No. 358 Rogue 358 Adventurer 0 Explorer 0 Win Type - Total 6 Types 3/1/1/1/0/0/0/0/0 Lore% 62 Gallery% 78 Achievement% 66 Wizard Run 0 Options --------- ASCII 0 Keyboard 0 Movement Numpad Keybinds 0 Fullscreen 1 Font 16/Terminus Map View 75x55 Tactical HUD 1 Map Filters NONE Filters NONE Steam 1 RUN: 8d785b6b-98af-4931-b1af-0e776eb16231